Cogmind - Beta 16 --- EXPLORER MODE // 2025.12.04 @ 15:22:09 Player: K.K.Y. Result: Destroyed by FF-O9P(R) with Subdweller Laser Performance ------------- Evolutions (0) 0 Regions Visited (3) 600 Robots Destroyed (23) 115 Value Destroyed (348) 348 Prototype IDs (1) 20 Alien Tech Used (0) 0 Bonus (0) 0 TOTAL SCORE: 1083 Bonus ------- None Cogmind --------- Core Integrity 0/250 Matter 284/300 Energy 99/100 System Corruption 0% Temperature Cool (6) Movement Treading (160) Location -10/Subcaves Parts ------- > --- POWER (1) -------- (None) > --- PROPULSION (2) --- Light Treads > --- UTILITY (3) ------ Structural Scanner Experimental Sensor Array > --- WEAPON (2) ------- Barrage Gun Hammer > --- INVENTORY (5) ---- Huge Storage Unit Beam Rifle Mining Laser Peak State ------------ > --- POWER ------------ Ion Engine > --- PROPULSION ------- Wheel Wheel > --- UTILITY ---------- Structural Scanner Experimental Sensor Array Improved Terrain Scanner > --- WEAPON ----------- Beam Rifle Beam Rifle > --- INVENTORY -------- Light Treads Light Treads Huge Storage Unit Mining Laser Hammer [Rating: 20] Favorites ----------- Power Ion Engine Engine Ion Engine Propulsion Wheel Treads Light Treads Wheel Wheel Utility Structural Scanner Device Structural Scanner Weapon Beam Rifle Energy Gun Beam Rifle Ballistic Gun Barrage Gun Impact Weapon Hammer Build | -11 -10 -10 -10 ------- Run | Yrd Mat Min Sub Slots Evolved 1 | . 1 . . Power . | . . . . Propulsion . | . . . . Utility 1 | . 1 . . Weapon . | . . . . Parts Attached 19 | 8 5 1 5 Power 5 | 1 1 . 3 Engine 5 | 1 1 . 3 Core . | . . . . Reactor . | . . . . Propulsion 4 | 4 . . . Treads 2 | 2 . . . Leg . | . . . . Wheel 2 | 2 . . . Hover . | . . . . Flight . | . . . . Utility 4 | 1 2 1 . Device 4 | 1 2 1 . Storage . | . . . . Processor . | . . . . Hackware . | . . . . Protection . | . . . . Artifact . | . . . . Weapon 6 | 2 2 . 2 Energy Gun 3 | 1 2 . . Energy Cannon . | . . . . Ballistic Gun 2 | 1 . . 1 Ballistic Cannon . | . . . . Launcher . | . . . . Special Weapon . | . . . . Impact Weapon 1 | . . . 1 Slashing Weapon . | . . . . Piercing Weapon . | . . . . Special Melee Weapon . | . . . . Unidentified Prototypes 1 | . . 1 . Parts Lost 7 | . . . 7 Power 2 | . . . 2 Propulsion 3 | . . . 3 Utility 1 | . . . 1 Weapon 1 | . . . 1 Highest Loss Streak 3 | . . . 3 To Critical Strikes . | . . . . Average Backups 4 | 1 4 5 3 Power . | . . . . Propulsion 1 | . 2 2 . Utility . | . . 1 1 Weapon 2 | . 2 2 2 Tool/Special . | . . . . Unused Backups 3 | . 1 . 2 Power . | . . . . Propulsion . | . . . . Utility 1 | . . . 1 Weapon 2 | . 1 . 1 Tool/Special . | . . . . Average Slot Usage (%) 88 | . 97 100 83 Engine 11 | . 12 12 10 Treads 10 | . . . 15 Wheel 13 | . 25 25 7 Device 31 | . 34 37 29 Energy Gun 17 | . 24 25 13 Impact Weapon 3 | . . . 6 Peak Build Rating 20 | 6 12 20 20 Average Rating 15 | 4 11 19 16 On Entrance 9 | . 6 12 20 Avg Prop Armor Cover (%) . | . . . . Naked Turns . | . . . . Heaviest Build 16 | 8 14 14 16 Greatest Support 40 | 40 20 20 40 Greatest Overweight (x) 1 | . . . 1 Average Overweight (x) . | . . . . Largest Inventory Capacity 5 | 5 5 5 5 Average Capacity 5 | 5 5 5 5 Most Carried 5 | 5 5 5 5 Average Carried 4 | 1 4 5 3 Final Capacity 5 | 5 5 5 5 Final Carried 5 | 4 5 5 3 Class Distribution -------------------- 68% | Hacker-Mutant 31% | Hacker-Skirmisher Dominant Class ---------------- Hacker-Mutant | -10/Materials Hacker-Skirmisher | -10/Mines Hacker-Mutant | -10/Subcaves Resources | -11 -10 -10 -10 ----------- Run | Yrd Mat Min Sub Matter Collected 447 | 136 216 10 85 Remotely . | . . . . Salvage Created 721 | 124 310 13 274 Parts 49 | 10 22 2 15 Haulers Intercepted 2 | . 2 . . Recyclers Shooed 1 | . 1 . . Parts Field Recycled . | . . . . Retrieved Matter . | . . . . Parts Self-Destructed . | . . . . Prevented . | . . . . Parts Restored . | . . . . Kills | -11 -10 -10 -10 ------- Run | Yrd Mat Min Sub Combat Hostiles Destroyed 14 | . 6 . 8 Melee 1 | . . . 1 Guns 11 | . 6 . 5 Classes Destroyed 7 | 2 4 . 1 Builder 1 | . 1 . . Tunneler 3 | 2 . 1 . Hauler 2 | . 2 . . Recycler 2 | 1 1 . . Watcher 1 | . 1 . . Swarmer 9 | . 6 . 3 Subdweller 5 | . . . 5 Best Kill Streak 3 | 3 3 1 2 Combat Bots Only 2 | . 2 . 2 Max Kills in Single Turn 1 | 1 1 1 1 Gunslinging . | . . . . Exploded . | . . . . Melee 1 | . . . 1 Uniques/NPCs Destroyed . | . . . . Combat | -11 -10 -10 -10 -------- Run | Yrd Mat Min Sub Hostile Shots Fired 98 | . 17 . 81 Missed 23 | . 5 . 18 Hits 75 | . 12 . 63 Projectile 75 | . 12 . 63 Damage Taken 989 | . 74 . 915 Core 250 | . 11 . 239 Absorbed by Shields . | . . . . Ignored by Resistances 569 | . 54 . 515 Core Remaining (%) 100 | 100 . . . Volleys Fired 63 | 4 28 1 30 Largest 2 | 2 2 2 2 Hottest 112 | 60 112 112 112 Shots Fired 114 | 8 56 2 48 Gun 114 | 8 56 2 48 Cannon . | . . . . Launcher . | . . . . Special . | . . . . Kinetic 13 | 4 . . 9 Thermal 97 | . 56 2 39 Explosive . | . . . . Electromagnetic 4 | 4 . . . Robot Hit Streak 13 | 5 8 3 13 Robot Miss Streak 3 | . 2 . 3 Penetration Max . | . . . . Secondary Targets 1 | . . . 1 Max Gunslinging Chain 1 | . . . 1 Shots Hit Robots 105 | 5 40 2 58 Core Hits 26 | 3 12 1 10 Critical Kills . | . . . . Critical Parts Destroyed 1 | . . . 1 Critical Strikes 5 | . 2 . 3 Burn 3 | . 2 . 1 Smash 2 | . . . 2 Melee Attacks 29 | . . . 29 Impact 29 | . . . 29 Slashing . | . . . . Piercing . | . . . . Sneak Attacks 1 | . . . 1 Combat Hostiles 1 | . . . 1 Follow-up Attacks . | . . . . Damage Inflicted 1686 | 68 578 30 1010 Guns 1071 | 68 578 30 395 Cannons . | . . . . Explosions . | . . . . Melee 615 | . . . 615 Ramming . | . . . . Kinetic 145 | 14 . . 131 Thermal 872 | . 578 30 264 Explosive . | . . . . Electromagnetic 54 | 54 . . . Impact 615 | . . . 615 Slashing . | . . . . Piercing . | . . . . Highest Corruption . | . . . . Average Corruption . | . . . . Corruption Purged . | . . . . Corruption Blocked . | . . . . Overload Shots . | . . . . Overflow Damage 56 | . . . 56 Projectiles . | . . . . Explosions . | . . . . Melee 56 | . . . 56 Knockbacks 5 | . . . 5 Impact 5 | . . . 5 Kinetic . | . . . . Secondary . | . . . . Self-Inflicted Damage . | . . . . Shots . | . . . . Rammed . | . . . . Targets Rammed . | . . . . Kicked . | . . . . Crushed . | . . . . Highest Temperature 310 | . 310 51 33 Average Temperature 84 | . 94 28 18 Received Heat Transfer 291 | . . . 291 Effects 4 | . 4 . . Energy Bleed 1 | . 1 . . Interference 3 | . 3 . . Siege Activations . | . . . . Martial Activations . | . . . . Shielding Activations . | . . . . Robots Disrupted . | . . . . Combat Hostiles . | . . . . Robots Corrupted 2 | . . . 2 Combat Hostiles 2 | . . . 2 Parts Fried 4 | . . . 4 Impact Corruptions 4 | . . . 4 Robots Melted 1 | . 1 . . Combat Hostiles . | . . . . Parts Melted 3 | . 3 . . Heat Transferred 2442 | . 1628 74 740 Parts Sabotaged . | . . . . Parts Stolen . | . . . . Parts Stripped . | . . . . Power Chain Reactions . | . . . . Alert | -11 -10 -10 -10 ------- Run | Yrd Mat Min Sub Maximum Alert Level . | . . . . Low Security (%) 100 | 100 100 100 . Level 1 . | . . . . Level 2 . | . . . . Level 3 . | . . . . Level 4 . | . . . . Level 5 . | . . . . High Security . | . . . . Max Security . | . . . . Peak Influence 70 | 5 70 5 . Initial . | . . . . Average 8 | 2 14 . . Influence Increases 274 | 15 184 5 70 Destroy 0b10 Robot/C 180 | . 120 . 60 Destroy 0b10 Robot/NC 45 | 15 25 5 . Destroy Leader 46 | . 36 . 10 Destroy Structure 3 | . 3 . . Influence Decreases 274 | 15 184 5 70 Time Decay 254 | 15 184 5 50 Lost Ally 20 | . . . 20 Squads Dispatched . | . . . . Investigation . | . . . . Extermination . | . . . . Reinforcement . | . . . . Assault . | . . . . Garrison . | . . . . Intercept . | . . . . Searches Triggered . | . . . . Construction Impeded . | . . . . Haulers Reinforced . | . . . . Active Scanning Responses . | . . . . Cargo Convoy Interrupts . | . . . . Stealth | -11 -10 -10 -10 --------- Run | Yrd Mat Min Sub Distress Signals . | . . . . Communications Jammed . | . . . . Distress Signals . | . . . . Times Spotted 22 | . 9 4 9 Peak Tracking Total 4 | . 2 4 2 Tactical Retreats 1 | . . 1 . Traps | -11 -10 -10 -10 ------- Run | Yrd Mat Min Sub Traps Triggered 3 | . 2 . 1 Indirectly . | . . . . Trap Hack Attempts . | . . . . Triggered . | . . . . Disarmed . | . . . . Reprogrammed . | . . . . Reused . | . . . . Traps Extracted . | . . . . Installed . | . . . . Triggered . | . . . . Machines | -11 -10 -10 -10 ---------- Run | Yrd Mat Min Sub Machines Disabled 1 | . 1 . . Max in Single Turn 1 | . 1 . . Machines Repaired . | . . . . Machines Dismantled . | . . . . Machines Sabotaged . | . . . . Overloaded Fab Kills . | . . . . Hacking | -11 -10 -10 -10 --------- Run | Yrd Mat Min Sub Machines Accessed 7 | . 5 . 2 Terminals 5 | . 5 . . Fabricators . | . . . . Repair Stations . | . . . . Recycling Units . | . . . . Scanalyzers . | . . . . Garrison Access . | . . . . Total Hacks 9 | . 6 . 3 Successful 8 | . 5 . 3 Failed 1 | . 1 . . Catastrophic . | . . . . Database Lockouts . | . . . . Manual 6 | . 6 . . Terminals 6 | . 6 . . Fabricators . | . . . . Repair Stations . | . . . . Recycling Units . | . . . . Scanalyzers . | . . . . Garrison Access . | . . . . Terminal Hacks 3 | . . . 3 Record 1 | . . . 1 Open Door 1 | . . . 1 Release Object 1 | . . . 1 Fabricator Hacks . | . . . . Repair Station Hacks . | . . . . Recycling Unit Hacks . | . . . . Scanalyzer . | . . . . Garrison Access Hacks . | . . . . Unauthorized Hacks 5 | . 5 . . Terminals 5 | . 5 . . Botnet 5 | . 5 . . Fabricators . | . . . . Repair Stations . | . . . . Recycling Units . | . . . . Scanalyzers . | . . . . Garrison Access . | . . . . Data Cores Recovered . | . . . . Used . | . . . . Hacking Detections 2 | . 2 . . Full Trace Events . | . . . . Feedback Events . | . . . . Feedback Blocked . | . . . . Robot Schematics Acquired . | . . . . Robots Built . | . . . . Authchips . | . . . . Time . | . . . . Total Robot Build Rating . | . . . . Part Schematics Acquired . | . . . . Parts Built . | . . . . Authchips . | . . . . Time . | . . . . Total Part Build Rating . | . . . . Part Studies Acquired . | . . . . Parts Repaired . | . . . . Time . | . . . . Parts Recycled . | . . . . Recycled Matter . | . . . . Retrieved Matter . | . . . . Retrieved Components . | . . . . Parts Scanalyzed . | . . . . Part Schematics Acquired . | . . . . Parts Damaged . | . . . . Bothacking | -11 -10 -10 -10 ------------ Run | Yrd Mat Min Sub Used RIF Installer . | . . . . Robots Hacked . | . . . . Non-combat . | . . . . Combat . | . . . . Robot Hacks Applied . | . . . . Relay Couplers Released . | . . . . Fabnet Peak Effective % . | . . . . Robots Rewired . | . . . . Allies Hacked . | . . . . Hacks Repelled . | . . . . Allies | -11 -10 -10 -10 -------- Run | Yrd Mat Min Sub Total Allies 3 | . . 3 . Largest Group 3 | . . 3 2 Highest-Rated Group 40 | . . 40 24 Highest-Rated Ally 16 | . . 16 16 Total Orders . | . . . . Ally Attacks 18 | . . 17 1 Total Damage 194 | . . 183 11 Kills 5 | . . 5 . Allies Corrupted . | . . . . Allies Melted . | . . . . Intel | -11 -10 -10 -10 ------- Run | Yrd Mat Min Sub Active Infowar (turns) 2658 | 65 562 297 1734 Sensors 2009 | . . 275 1734 Terrain 1420 | . 531 297 592 Structural 2658 | 65 562 297 1734 Robot Analysis Total . | . . . . Derelict Logs Recovered 2 | . . . 2 Drone Launches . | . . . . Drone Recoveries . | . . . . Exploration | -11 -10 -10 -10 ------------- Run | Yrd Mat Min Sub Turns Passed 2677 | 84 562 297 1734 Spaces Moved 1650 | 49 395 299 907 Core 20 | 20 . . . Treads 488 | 24 . . 464 Legs . | . . . . Wheels 1142 | 5 395 299 443 Hover . | . . . . Flight . | . . . . Fastest Speed 50 | 50 80 80 80 Average Speed 104 | 106 80 80 123 Slowest Speed 160 | 160 80 80 160 Overloaded Moves . | . . . . Propulsion Burnouts . | . . . . Robots Hopped . | . . . . Potential Cave-ins . | . . . . Cave-ins Triggered . | . . . . Exploration Rate (%) 46 | 4 77 50 55 Regions Visited 3 Branch Regions 2 Pre-discovered Areas . | . . . . Known Exits Taken 3 | 1 1 1 . Unknown Exits Taken . | . . . . Scrap Searched 2 | . . . 2 Spaces Dug . | . . . . Terrain Destroyed . | . . . . Melee . | . . . . Projectile . | . . . . AOE . | . . . . Terrain Rammed . | . . . . Walls Destroyed . | . . . . Machines Disabled . | . . . . Actions | -11 -10 -10 -10 --------- Run | Yrd Mat Min Sub Total 2432 | 72 586 354 1420 Wait 642 | . 148 53 441 Move 1647 | 48 394 298 907 Hop . | . . . . Pick Up 18 | 10 5 . 3 Fast Attach 4 | 1 2 1 . Attach 14 | 7 3 . 4 Detach 2 | 1 1 . . Swap 5 | . 1 . 4 Drop 8 | 1 4 1 2 Fire 63 | 4 28 1 30 Melee 29 | . . . 29 Ram . | . . . . Kick . | . . . . Crush . | . . . . Escape Stasis . | . . . . Rewire . | . . . . Trap . | . . . . Miscellaneous . | . . . . Route ------- -11/Scrapyard -10/Materials (discovered 3 exits: *Mat / *Min x2) -10/Mines (discovered 3 exits: *Mat x2 / *Sub) -10/Subcaves (discovered 2 exits: *Mat x2) History --------- Turn | Location | Event 7 | -11/Scrapyard | Identified exit to Materials 7 | -11/Scrapyard | Discovered exit to Materials (range 16) 85 | -11/Scrapyard | Entered Materials 85 | -10/Materials | Evolved 1 slot: Utility x1 190 | -10/Materials | Identified exit to Mines 190 | -10/Materials | Discovered exit to Mines (range 16) 300 | -10/Materials | Discovered exit to Mines (range 15) 311 | -10/Materials | Build established: Hacker-Mutant 622 | -10/Materials | Identified exit to Materials 622 | -10/Materials | Discovered exit to Materials (range 3) 647 | -10/Materials | Entered Mines 654 | -10/Mines | Received a Rocket Launcher from a helpful Derelict 667 | -10/Mines | Found a damaged Exp. Sensor Array with a note attached 669 | -10/Mines | Found Prototype Device 669 | -10/Mines | Identified Exp. Sensor Array 698 | -10/Mines | Discovered exit to Materials (range 16) 710 | -10/Mines | Discovered exit to Materials (range 13) 738 | -10/Mines | Assembled infested the area 743 | -10/Mines | Assisted by a Guerilla fighting off Assembled 805 | -10/Mines | Assisted by bots powering up and referring to "LRC-V3" 876 | -10/Mines | Identified exit to Subcaves 876 | -10/Mines | Discovered exit to Subcaves (range 15) 944 | -10/Mines | Entered Subcaves 944 | -10/Subcaves | Accompanied by 2 allies 945 | -10/Subcaves | Approached by a straggling Scientist 975 | -10/Subcaves | Build established: Hacker-Skirmisher 1209 | -10/Subcaves | Shifting Twisted Machinery released Battle Rifle 1214 | -10/Subcaves | Shifting Twisted Machinery released Flamer 1366 | -10/Subcaves | Learned 2 Materials zone layouts 1376 | -10/Subcaves | Identified exit to Materials 1376 | -10/Subcaves | Discovered exit to Materials (range 14) 1535 | -10/Subcaves | Ambushed by Subdwellers from Twisted Machinery 1587 | -10/Subcaves | Lost 3 parts (1p1n1u) 1785 | -10/Subcaves | Shifting Twisted Machinery released Sub. Monowheel 1786 | -10/Subcaves | Shifting Twisted Machinery released Battle Cannon 1825 | -10/Subcaves | Build established: Hacker-Mutant 1899 | -10/Subcaves | Disturbed a concealed Subdweller 1929 | -10/Subcaves | Core integrity fell below 50% 2210 | -10/Subcaves | Curiously followed by a Cobbler waking with a query about "LVR3C" 2659 | -10/Subcaves | Core integrity fell below 20% 2678 | -10/Subcaves | Destroyed by FF-O9P(R) with Subdweller Laser Last Messages --------------- 02429_ R2-6JL(O) puts together Mak. Light Armor Plating. 02469_ R2-6JL(O) puts together Battle Rifle. 02572_ Sneak attack on 2X-CBH(R). 02582_ 2X-CBH(R) knocked back. 02593_ Ion Engine destroyed. 02599_ Destroyed Sub. Optics. 02599_ 2X-CBH(R) system corrupted by crushing effect. 02601_ Lgt. Treads destroyed. 02606_ 2X-CBH(R) suffers critical hit (Smash). 02606_ Destroyed Sub. Beam Cannon. 02606_ 2X-CBH(R) system corrupted by crushing effect. 02607_ 2X-CBH(R) system terminally corrupted. 02607_ Sub. Monowheel fried. 02609_ Acquired 20 matter. 02640_ N4-07Q(z): "She is not going to be happy we haven't found any suitable candidates yet." 02657_ FF-O9P(R) knocked back. Map ----- +----------------------------------------------------+ | ????????????????????????????????????????## | | ????????????????????????????????????????## | | ????????????????????????????????????????## | | ????????????????????????????????????????## | | ????????????????????????????????????????## # | | ????????????????????????????????????????## ##### | | ????????????????????????????????????????## ##### | | ????????????????????????????????????????## ##?? | | ????????????????????????????????????###### ###? | | ?????????######?????????????????????###### ### | | ????????#######???????####??????????## #### ## | | ?????? #### ???????#########????### ### | | ????? ## ??##### #########??### ## | | ????# ??##### ### ####??## | | ????## #### ## # ##??## # | | ????## #### ## ###?### #### | | ????## ### ## ## ###?#### #### | | ???### ### ### ####### ##?? | | ???### ### #& ###### ####?? | | ??? #% # # ###### | | ??? ??? ???## ## "##### | | ? ? ## ### ?#### ;# "" | | ### ### #### ## ## "# | | # ""## ## ## | | ??## """" """"" ### | | ??## @ ## # ## #### | | ??## ## ""## " ############ ###? | | ??## ### ###### R ############# ##?? | | ? ### ?########## """######?????????? # ?? | | ? ####??#####??###########??????????? ?? | | ?## ?????###?????????########?????????????? | | ?###??????????????????????????????????????? #### | | ???????????????????????????????????????????####### | | ???????????????????????????????????????????#####?? | | ?????????????????????????????????????????????????? | | ?????????????????????????????????????????????????? | | ?????????????????????????????????????????????????? | | ?????????????????????????????????????????????????? | | ?????????????????????????????????????????????????? | | ?????????????????????????????????????????????????? | | ?????????????????????????????????????????????????? | | ?????????????????????????????????????????????????? | | ?????????????????????????????????????????????????? | | ?????????????????????????????????????????????????? | | ?????????????????????????????????????????????????? | | ?????????????????????????????????????????????????? | | ?????????????????????????????????????????????????? | | ?????????????????????????????????????????????????? | | | | | +----------------------------------------------------+ Best States ------------- Heat Dissipation 25 Energy Generation 15 Energy Capacity 265 Matter Stores 300 Matter Capacity 300 Sight Range 16 Robot Scan Range 20 Terrain Scan Range 16 Terrain Scan Density 10 Resistance: KI 35 Resistance: TH 35 Resistance: EX 35 Resistance: EM 35 Resistance: I 35 Resistance: S 35 Resistance: P 35 Evasion (%) 50 Recoil Reduction 2 Offensive Hacking 20 Item Schematics ----------------- None Robot Schematics ------------------ None Fabricated ------------ Nothing Repaired ---------- Nothing Studied --------- None Alien Tech Used ----------------- None Achievements -------------- None Challenges ------------ None Game ------ Seed RocketBlastPlatform Manual? 0 Play Time 00:16:28 Cumulative 168.7 hours Start 2025.12.04 @ 15:08:57 End 2025.12.04 @ 15:22:09 Sessions 1 Manual Loads 0 Difficulty Explorer Special Mode None Game No. 229 Rogue 0 Adventurer 0 Explorer 229 Win Type - Total 0 Types 0/0/0/0/0/0/0/0/0/0 Lore% 70 Gallery% 67 Achievement% 52 Wizard Run 0 Options --------- Layout 1 ASCII 0 Keyboard 0 Movement Mouse Keybinds 0 Fullscreen 1 Font 24/Smallcaps Map View 50x35 Zoom Use 0% Tactical HUD 1 Map Filters NONE Filters NONE Steam 1 RUN: f0d3e41a-d4d8-480c-b22f-d28941c73267